fUSD/lending_fUSD_20250718
["ID","MTS","AMOUNT","RATE_DAILY","PERIOD"]
[372904793,1752798646209,-460.0,0.00021917,2]
[372904794,1752798646218,-460.0,0.00021917,2]
[372904795,1752798646227,-460.0,0.00021917,2]
[372904796,1752798646236,-460.0,0.00021917,2]
[372904797,1752798646246,-460.0,0.00021917,2]
[372904798,1752798646254,-594.27,0.00021917,2]
[372904799,1752798646263,-460.0,0.00021917,2]
[372904800,1752798646272,-460.0,0.00021917,2]
[372904801,1752798646281,-460.0,0.00021917,2]
[372904802,1752798646290,-460.0,0.00021917,2]
[372904804,1752798646298,-460.0,0.00021917,2]
[372904806,1752798646309,-460.0,0.00021917,2]
[372904808,1752798646318,-460.0,0.00021917,2]
[372904810,1752798646327,-460.0,0.00021917,2]
[372904812,1752798646335,-460.0,0.00021917,2]
[372904814,1752798646344,-462.40466432,0.00021917,2]
[372904816,1752798646352,-460.0,0.00021917,2]
[372904818,1752798646361,-500.15606924,0.00021917,2]
[372904820,1752798646370,-460.0,0.00021917,2]
[372904822,1752798646377,-460.0,0.00021917,2]
[372904824,1752798646385,-460.0,0.00021917,2]
[372904826,1752798646394,-460.0,0.00021917,2]
[372904828,1752798646403,-460.0,0.00021917,2]
[372904830,1752798646412,-460.0,0.00021917,2]
[372904831,1752798646419,-460.0,0.00021917,2]
[372904832,1752798646426,-460.0,0.00021917,2]
[372904833,1752798646434,-460.0,0.00021917,2]
[372904834,1752798646440,-460.0,0.00021917,2]
[372904835,1752798646451,-460.0,0.00021917,2]
[372904836,1752798646459,-460.0,0.00021917,2]
[372904837,1752798646467,-460.0,0.00021917,2]
[372904838,1752798646476,-460.0,0.00021917,2]
[372904839,1752798646485,-460.0,0.00021917,2]
[372904840,1752798646493,-460.0,0.00021917,2]
[372904841,1752798646502,-460.0,0.00021917,2]
[372904842,1752798646511,-460.0,0.00021917,2]
[372904843,1752798646521,-460.0,0.00021917,2]
[372904844,1752798646529,-541.95,0.00021917,2]
[372904845,1752798646538,-500.0,0.00021917,2]
[372904846,1752798646547,-460.0,0.00021917,2]
[372904847,1752798646556,-460.0,0.00021917,2]
[372904848,1752798646565,-460.0,0.00021917,2]
[372904849,1752798646574,-463.00754328,0.00021917,2]
[372904850,1752798646583,-460.0,0.00021917,2]
[372904851,1752798646592,-460.0,0.00021917,2]
[372904852,1752798646601,-460.0,0.00021917,2]
[372904853,1752798646610,-460.0,0.00021917,2]
[372904854,1752798646619,-460.0,0.00021917,2]
[372904855,1752798646628,-460.0,0.00021917,2]
[372904856,1752798646638,-460.0,0.00021917,2]
[372904857,1752798646647,-460.0,0.00021917,2]
[372904858,1752798646656,-460.0,0.00021917,2]
[372904859,1752798646665,-460.0,0.00021917,2]
[372904860,1752798646675,-460.0,0.00021917,2]
[372904861,1752798646683,-460.0,0.00021917,2]
[372904862,1752798646690,-332.0839728,0.00021917,2]
[372904872,1752798830562,2889.62,0.00030137,120]
[372904874,1752799284963,500.0,0.00023,30]
[372904875,1752799300491,551.0,0.00023,30]
[372904880,1752799651660,164.66,0.0003,120]
[372904884,1752799779054,25000.0,0.0003,120]
[372904885,1752799795377,1826.0837867,0.000301,120]
[372904891,1752799831764,-668.0,0.00015,2]
[372904892,1752799831773,-287.76752307,0.00016399,2]
[372904893,1752799831783,-825.30156251,0.00016499,2]
[372904894,1752799831802,-374.69843749,0.00016499,2]
[372904895,1752799831812,-402.04154751,0.000165,2]
[372904896,1752799831824,-597.95845249,0.000165,2]
[372904897,1752799831834,-725.90313965,0.000165,2]
[372904898,1752799831974,-274.09686035,0.000165,2]
[372904899,1752799831984,-250.0,0.000165,2]
[372904900,1752799831993,-1000.0,0.000165,2]
[372904901,1752799832003,-800.0,0.000175,2]
[372904902,1752799832013,-2891.38218707,0.000179,2]
[372904903,1752799832022,-1680.0,0.0001812,2]
[372904904,1752799832034,-784.0,0.0001878,2]
[372904905,1752799832046,-207.4,0.00018907,2]
[372904906,1752799832055,-850.0,0.00018918,2]
[372904907,1752799832065,-500.0,0.00018919,2]
[372904908,1752799832074,-500.0,0.00018919,2]
[372904909,1752799832084,-500.0,0.00018919,2]
[372904911,1752799832093,-500.0,0.00018919,2]
[372904913,1752799832103,-500.0,0.00018919,2]
[372904915,1752799832112,-600.0,0.00018919,2]
[372904917,1752799832123,-411.92003899,0.00018919,2]
[372904919,1752799832132,-500.0,0.00018919,2]
[372904921,1752799832141,-500.0,0.00018919,2]
[372904923,1752799832151,-500.0,0.00018919,2]
[372904925,1752799832160,-431.64492564,0.00018919,2]
[372904928,1752799832170,-500.0,0.00018919,2]
[372904929,1752799832180,-500.0,0.00018919,2]
[372904931,1752799832189,-500.0,0.00018919,2]
[372904933,1752799832198,-952.0,0.0001893,2]
[372904935,1752799832207,-3350.0,0.0001893,2]
[372904937,1752799832216,-807.0,0.0001893,2]
[372904939,1752799832225,-1267.0,0.0001893,2]
[372904941,1752799832235,-1023.0,0.0001893,2]
[372904944,1752799832244,-3854.78182076,0.0001893,2]
[372904946,1752799832260,-976.61099859,0.0001893,2]
[372904950,1752799832280,-16523.60718065,0.0001893,2]
[372904953,1752799832292,-4123.0,0.0001893,2]
[372904955,1752799832301,-533.481,0.0001893,2]
[372904957,1752799832311,-187.78006525,0.00019178,2]
[372904959,1752799832320,-174.79,0.00019178,2]
[372904961,1752799832329,-511.0,0.00019333,2]
[372904963,1752799832339,-600.0,0.00019467,2]
[372904965,1752799832348,-150.0,0.00019654,2]
[372904967,1752799832358,-23890.0,0.00019676,2]
[372904969,1752799832368,-246.68,0.00019688,2]
[372904971,1752799832377,-152.0,0.00019725,2]
[372904973,1752799832386,-152.0,0.00019725,2]
[372904975,1752799832395,-152.0,0.00019725,2]
[372904977,1752799832405,-152.0,0.00019725,2]
[372904979,1752799832414,-222.0,0.00019725,2]
[372904981,1752799832423,-493.11,0.00019753,2]
[372904983,1752799832432,-190.0,0.0001977,7]
[372904985,1752799832442,-209.84,0.00019793,2]
[372904987,1752799832455,-2087.12889379,0.00019793,2]
[372904989,1752799832464,-666.0,0.00019801,2]
[372904991,1752799832474,-3042.44,0.0001983,2]
[372904993,1752799832483,-621.62,0.00019857,2]
[372904995,1752799832493,-2351.0,0.000199,2]
[372904997,1752799832502,-452.0,0.00019958,2]
[372904999,1752799832511,-600.0,0.00020015,2]
[372905001,1752799832522,-185.89,0.00020045,2]
[372905002,1752799832531,-768.0,0.0002005,2]
[372905005,1752799832543,-1000.0,0.00020164,2]
[372905007,1752799832552,-500.0,0.00020164,2]
[372905008,1752799832562,-1100.0,0.00020164,2]
[372905010,1752799832571,-150.0,0.00020179,2]
[372905012,1752799832580,-1000.0,0.00020208,2]
[372905014,1752799832589,-215.0738,0.00020276,2]
[372905016,1752799832599,-51.58401439,0.00020563,2]
[372905048,1752799837969,-548.41598561,0.00020563,2]
[372905049,1752799837979,-246.68,0.00020672,2]
[372905050,1752799837988,-150.0,0.00020704,2]
[372905051,1752799837998,-150.0,0.00020934,4]
[372905052,1752799838008,-150.0,0.00020934,4]
[372905053,1752799838017,-150.0,0.00020934,4]
[372905054,1752799838027,-150.0,0.00020934,4]
[372905055,1752799838037,-600.0,0.00021111,2]
[372905056,1752799838048,-150.0,0.00021229,2]
[372905057,1752799838058,-1000.0,0.0002126,2]
[372905058,1752799838067,-1100.0,0.0002126,2]
[372905059,1752799838077,-752.0,0.0002133,2]
[372905060,1752799838086,-164.68,0.0002135,2]
[372905061,1752799838096,-150.0,0.0002135,2]
[372905062,1752799838106,-789.05,0.0002135,2]
[372905063,1752799838115,-357.46,0.0002135,2]
[372905064,1752799838125,-1174.01,0.0002135,2]
[372905065,1752799838134,-476.69234516,0.00021482,2]
[372905066,1752799838144,-210.7686556,0.00021482,2]
[372905067,1752799838153,-160.0,0.00021482,2]
[372905068,1752799838162,-838.90634898,0.00021482,2]
[372905070,1752799838171,-276.45,0.000215,2]
[372905072,1752799838180,-464.8,0.00021507,2]
[372905074,1752799838190,-814.69,0.00021507,2]
[372905076,1752799838199,-464.8,0.00021507,2]
[372905078,1752799838208,-814.69,0.00021507,2]
[372905080,1752799838218,-185.89,0.00021548,2]
[372905082,1752799838228,-464.8,0.00021582,2]
[372905084,1752799838237,-464.8,0.00021582,2]
[372905087,1752799838246,-511.0,0.00021592,5]
[372905090,1752799838256,-163.0,0.000216,3]
[372905092,1752799838265,-163.0,0.000216,3]
[372905094,1752799838274,-223.0315306,0.00021645,2]
[372905096,1752799838284,-246.68,0.00021657,2]
[372905098,1752799838294,-600.0,0.00021659,2]
[372905100,1752799838303,-150.0,0.0002171,4]
[372905102,1752799838312,-165.009,0.00021717,2]
[372905104,1752799838321,-2004.574,0.00021717,2]
[372905105,1752799838331,-634.614293,0.00021747,8]
[372905107,1752799838340,-150.0,0.00021754,2]
[372905109,1752799838350,-1500.0,0.00021817,2]
[372905111,1752799838360,-2500.0,0.00021817,2]
[372905113,1752799838370,-5000.0,0.00021817,2]
[372905115,1752799838379,-633.16787145,0.00021817,2]
[372905117,1752799838389,-158.55705637,0.00021817,2]
[372905119,1752799838398,-375.66334979,0.00021817,2]
[372905121,1752799838407,-168.59050775,0.00021817,2]
[372905123,1752799838417,-157.1072258,0.00021817,2]
[372905125,1752799838426,-160.36469081,0.00021836,2]
[372905260,1752799839842,-250.0,0.00020051,2]
[372905262,1752799839852,-241.64499409,0.00021836,2]
[372905265,1752799839862,-3292.0,0.00021855,2]
[372905266,1752799839872,-2000.0,0.000219,2]
[372905268,1752799839881,-2004.52,0.000219,2]
[372905270,1752799839891,-926.03,0.00021907,2]
[372905272,1752799839900,-500.0,0.00021916,2]
[372905274,1752799839910,-500.0,0.00021916,2]
[372905276,1752799839919,-500.0,0.00021916,2]
[372905278,1752799839929,-500.0,0.00021916,2]
[372905280,1752799839938,-369.88731805,0.00021916,2]
[372905282,1752799839947,-2000.0,0.00021916,2]
[372905284,1752799839956,-460.0,0.00021917,2]
[372905286,1752799839965,-460.0,0.00021917,2]
[372905288,1752799839975,-460.0,0.00021917,2]
[372905290,1752799839984,-512.99,0.00021917,2]
[372905292,1752799839994,-460.0,0.00021917,2]
[372905294,1752799840003,-460.0,0.00021917,2]
[372905296,1752799840013,-314.13845693,0.00021917,2]
[372905298,1752799840023,-460.0,0.00021917,2]
[372905300,1752799840032,-460.0,0.00021917,2]
[372905302,1752799840041,-460.0,0.00021917,2]
[372905304,1752799840056,-460.0,0.00021917,2]
[372905306,1752799840065,-158.485098,0.00021917,2]
[372905308,1752799840075,-188.782412,0.00021917,2]
[372905311,1752799840087,-1010.476229,0.00021917,2]
[372905312,1752799840096,-1325.220533,0.00021917,2]
[372905314,1752799840105,-1291.777141,0.00021917,2]
[372905316,1752799840115,-460.0,0.00021917,2]
[372905318,1752799840124,-460.0,0.00021917,2]
[372905320,1752799840134,-460.0,0.00021917,2]
[372905322,1752799840143,-460.0,0.00021917,2]
[372905324,1752799840153,-56.04781793,0.00021917,2]
[372905327,1752799840167,-95.18677707,0.00021917,2]
[372905329,1752799840176,-460.0,0.00021917,2]
[372905331,1752799840186,-460.0,0.00021917,2]
[372905333,1752799840196,-462.43341229,0.00021917,2]
[372905335,1752799840205,-460.0,0.00021917,2]
[372905337,1752799840214,-460.0,0.00021917,2]
[372905339,1752799840224,-460.0,0.00021917,2]
[372905341,1752799840233,-460.0,0.00021917,2]
[372905343,1752799840243,-462.16628599,0.00021917,2]
[372905345,1752799840253,-198.55201521,0.00021917,2]
[372905347,1752799840262,-460.0,0.00021917,2]
[372905349,1752799840272,-460.0,0.00021917,2]
[372905351,1752799840281,-301.67633926,0.00021917,2]
[372905353,1752799840291,-492.74020205,0.00021917,2]
[372905355,1752799840302,-460.0,0.00021917,2]
[372905356,1752799840312,-460.0,0.00021917,2]
[372905359,1752799840322,-460.0,0.00021917,2]
[372905360,1752799840332,-460.0,0.00021917,2]
[372905362,1752799840341,-460.0,0.00021917,2]
[372905364,1752799840350,-460.0,0.00021917,2]
[372905366,1752799840359,-460.0,0.00021917,2]
[372905368,1752799840369,-460.0,0.00021917,2]
[372905370,1752799840378,-460.0,0.00021917,2]
[372905372,1752799840387,-416.90790305,0.00021917,2]
[372905375,1752799840400,-43.09209695,0.00021917,2]
[372905377,1752799840409,-460.0,0.00021917,2]
[372905379,1752799840418,-95.99770105,0.00021917,2]
[372905382,1752799840446,-364.00229895,0.00021917,2]
[372905384,1752799840459,-328.94257299,0.00021917,2]
[372905485,1752799841449,-131.05742701,0.00021917,2]
[372905487,1752799841461,-460.0,0.00021917,2]
[372905489,1752799841471,-460.0,0.00021917,2]
[372905491,1752799841481,-460.0,0.00021917,2]
[372905493,1752799841491,-256.35758761,0.00021917,2]
[372905495,1752799841502,-460.0,0.00021917,2]
[372905497,1752799841511,-460.0,0.00021917,2]
[372905499,1752799841521,-460.0,0.00021917,2]
[372905501,1752799841532,-264.85098661,0.00021917,2]
[372905503,1752799841542,-460.0,0.00021917,2]
[372905505,1752799841556,-460.0,0.00021917,2]
[372905507,1752799841565,-460.0,0.00021917,2]
[372905509,1752799841575,-460.0,0.00021917,2]
[372905511,1752799841584,-318.32691551,0.00021917,2]
[372905513,1752799841593,-460.0,0.00021917,2]
[372905515,1752799841603,-460.0,0.00021917,2]
[372905518,1752799841613,-522.2142688,0.00021917,2]
[372905520,1752799841622,-460.0,0.00021917,2]
[372905521,1752799841632,-460.0,0.00021917,2]
[372905524,1752799841641,-460.0,0.00021917,2]
[372905525,1752799841651,-460.0,0.00021917,2]
[372905527,1752799841661,-460.0,0.00021917,2]
[372905530,1752799841670,-155.76988452,0.00021917,2]
[372905533,1752799841679,-460.0,0.00021917,2]
[372905535,1752799841688,-460.0,0.00021917,2]
[372905539,1752799841699,-460.0,0.00021917,2]
[372905540,1752799841708,-460.26,0.00021917,2]
[372905542,1752799841717,-460.0,0.00021917,2]
[372905544,1752799841727,-460.0,0.00021917,2]
[372905546,1752799841735,-460.0,0.00021917,2]
[372905548,1752799841744,-51.65724445,0.00021917,2]
[372905551,1752799841759,-539.32531396,0.00021917,2]
[372905553,1752799841768,-460.0,0.00021917,2]
[372905555,1752799841778,-305.42086506,0.00021917,5]
[372905557,1752799841786,-151.0,0.00021917,2]
[372905559,1752799841796,-460.0,0.00021917,2]
[372905561,1752799841806,-151.0,0.00021917,2]
[372905563,1752799841815,-151.0,0.00021917,2]
[372905565,1752799841824,-464.08,0.00021917,2]
[372905567,1752799841833,-460.0,0.00021917,2]
[372905569,1752799841842,-460.0,0.00021917,2]
[372905571,1752799841851,-460.0,0.00021917,2]
[372905572,1752799841861,-151.0,0.00021917,2]
[372905573,1752799841870,-151.0,0.00021917,2]
[372905574,1752799841879,-163.637669,0.00021917,2]
[372905575,1752799841889,-522.0623694,0.00021917,2]
[372905576,1752799841900,-151.0,0.00021917,2]
[372905577,1752799841909,-460.0,0.00021917,2]
[372905578,1752799841918,-151.0,0.00021917,2]
[372905579,1752799841928,-460.0,0.00021917,2]
[372905580,1752799841937,-151.0,0.00021917,2]
[372905581,1752799841947,-151.0,0.00021917,2]
[372905582,1752799841956,-562.11327906,0.00021917,2]
[372905584,1752799841965,-460.0,0.00021917,2]
[372905585,1752799841975,-467.00450383,0.00021917,2]
[372905587,1752799841983,-460.0,0.00021917,2]
[372905589,1752799841993,-460.0,0.00021917,2]
[372905591,1752799842002,-460.0,0.00021917,2]
[372905593,1752799842012,-460.0,0.00021917,2]
[372905596,1752799842021,-460.0,0.00021917,2]
[372905597,1752799842030,-460.0,0.00021917,2]
[372905599,1752799842040,-460.0,0.00021917,2]
[372905601,1752799842050,-460.0,0.00021917,2]
[372905603,1752799842059,-460.0,0.00021917,2]
[372905605,1752799842069,-460.0,0.00021917,2]
[372905607,1752799842078,-460.0,0.00021917,2]
[372905609,1752799842087,-460.0,0.00021917,2]
[372905611,1752799842096,-460.0,0.00021917,2]
[372905613,1752799842105,-460.0,0.00021917,2]
[372905615,1752799842115,-460.0,0.00021917,2]
[372905617,1752799842124,-460.0,0.00021917,2]
[372905619,1752799842133,-460.0,0.00021917,2]
[372905621,1752799842143,-460.0,0.00021917,2]
[372905623,1752799842152,-460.0,0.00021917,2]
[372905625,1752799842161,-269.39705897,0.00021917,2]
[372905627,1752799842171,-460.0,0.00021917,2]
[372905629,1752799842180,-463.32623301,0.00021917,2]
[372905631,1752799842190,-460.0,0.00021917,2]
[372905633,1752799842201,-460.0,0.00021917,2]
[372905635,1752799842210,-1000.0,0.00021917,2]
[372905637,1752799842220,-460.0,0.00021917,2]
[372905639,1752799842229,-460.0,0.00021917,2]
[372905641,1752799842238,-460.0,0.00021917,2]
[372905643,1752799842248,-460.0,0.00021917,2]
[372905645,1752799842257,-460.0,0.00021917,2]
[372905647,1752799842266,-460.0,0.00021917,2]
[372905649,1752799842277,-460.0,0.00021917,2]
[372905651,1752799842286,-500.16,0.00021917,2]
[372905653,1752799842297,-460.0,0.00021917,2]
[372905656,1752799842307,-460.0,0.00021917,2]
[372905658,1752799842317,-210.97439339,0.00021917,2]
[372905659,1752799842326,-460.0,0.00021917,2]
[372905661,1752799842335,-460.0,0.00021917,2]
[372905663,1752799842344,-460.0,0.00021917,2]
[372905665,1752799842356,-151.0,0.00021917,2]
[372905667,1752799842365,-460.0,0.00021917,2]
[372905669,1752799842375,-460.0,0.00021917,2]
[372905671,1752799842384,-460.0,0.00021917,2]
[372905673,1752799842393,-460.0,0.00021917,2]
[372905675,1752799842403,-460.0,0.00021917,2]
[372905677,1752799842413,-460.0,0.00021917,2]
[372905679,1752799842422,-460.0,0.00021917,2]
[372905681,1752799842431,-460.0,0.00021917,2]
[372905683,1752799842441,-460.0,0.00021917,2]
[372905686,1752799842453,-460.0,0.00021917,2]
[372905687,1752799842462,-460.0,0.00021917,2]
[372905689,1752799842471,-460.0,0.00021917,2]
[372905691,1752799842481,-460.0,0.00021917,2]
[372905693,1752799842490,-415.32100059,0.00021917,2]
[372905695,1752799842501,-460.0,0.00021917,2]
[372905698,1752799842513,-460.0,0.00021917,2]
[372905701,1752799842525,-682.04,0.00021917,2]
[372905702,1752799842535,-460.0,0.00021917,2]
[372905704,1752799842546,-460.0,0.00021917,2]
[372905706,1752799842560,-460.0,0.00021917,2]
[372905708,1752799842570,-239.38313552,0.00021917,2]
[372905754,1752799842941,-125.61333344,0.00021917,2]
[372905756,1752799842951,-460.0,0.00021917,2]
[372905758,1752799842960,-460.0,0.00021917,2]
[372905760,1752799842969,-460.0,0.00021917,2]
[372905762,1752799842979,-460.0,0.00021917,2]
[372905764,1752799842989,-433.60446656,0.00021917,2]
[372905767,1752799843004,-26.39553344,0.00021917,2]
[372905769,1752799843013,-460.0,0.00021917,2]
[372905771,1752799843023,-460.0,0.00021917,2]
[372905773,1752799843033,-94.59582246,0.00021917,2]
[372906037,1752799845824,-889.0,0.0001893,2]
[372906039,1752799845835,-653.20000038,0.00021739,5]
[372906041,1752799845848,-667.78690001,0.00021739,5]
[372906051,1752799845947,-320.73009268,0.00021739,5]
[372906053,1752799845961,-1358.28300693,0.00021739,5]
[372906055,1752799845972,-365.40417754,0.00021917,2]
[372906057,1752799845983,-460.0,0.00021917,2]
[372906059,1752799845994,-460.0,0.00021917,2]
[372906061,1752799846005,-460.0,0.00021917,2]
[372906064,1752799846015,-460.0,0.00021917,2]
[372906066,1752799846026,-460.0,0.00021917,2]
[372906068,1752799846036,-460.0,0.00021917,2]
[372906070,1752799846047,-460.0,0.00021917,2]
[372906072,1752799846060,-460.0,0.00021917,2]
[372906074,1752799846070,-23.83985553,0.00021917,2]
[372906197,1752799848031,231.18,0.00013699,2]
[372906199,1752799892359,3100.0,0.00030137,120]
[372906200,1752800086895,1000.0,0.00030136,120]
[372906201,1752800371320,150.0,0.00030136,120]
[372906208,1752800928087,227.87,0.00013699,2]
[372906241,1752801032055,-250.0,0.00015,2]
[372906243,1752801032067,-1200.0,0.00016499,2]
[372906244,1752801032076,-1000.0,0.000165,2]
[372906246,1752801032086,-1000.0,0.000165,2]
[372906247,1752801032095,-1000.0,0.000165,2]
[372906249,1752801032105,-1326.17730004,0.00016575,2]
[372906250,1752801032118,-2395.8,0.00016575,2]
[372906252,1752801032129,-483.625376,0.00016575,2]
[372906253,1752801032144,-778.41667818,0.00016575,2]
[372906254,1752801032208,-1491.65309017,0.00016575,2]
[372906255,1752801032321,-966.52947844,0.00016575,2]
[372906290,1752801038146,-1821.970155,0.00016575,2]
[372906291,1752801038157,-9857.55931189,0.00016575,2]
[372906292,1752801038167,-194.41,0.00016712,2]
[372906293,1752801038177,-678.0,0.000175,2]
[372906294,1752801038186,-2994.35450021,0.000179,2]
[372906295,1752801038196,-5567.85626047,0.00018022,2]
[372906296,1752801038205,-1680.0,0.0001812,2]
[372906297,1752801038215,-200.0,0.00018284,2]
[372906298,1752801038225,-200.0,0.000184,2]
[372906299,1752801038234,-511.0,0.00018592,2]
[372906300,1752801038243,-2073.11136753,0.00018602,2]
[372906301,1752801038527,-9180.59595956,0.00018602,2]
[372906413,1752801040045,-2111.1667956,0.00018602,2]
[372906414,1752801040101,-7990.12587731,0.00018602,2]
[372906415,1752801040110,-4123.0,0.00018602,2]
[372906416,1752801040120,-664.0,0.0001878,2]
[372906417,1752801040130,-500.0,0.00018919,2]
[372906418,1752801040139,-500.0,0.00018919,2]
[372906419,1752801040149,-151.0,0.00018919,2]
[372906420,1752801040159,-500.0,0.00018919,2]
[372906421,1752801040168,-152.57162656,0.00018919,2]
[372906422,1752801040178,-151.0,0.00018919,2]
[372906423,1752801040187,-485.45142972,0.00018919,2]
[372906424,1752801040198,-162.2859647,0.00018919,2]
[372906425,1752801040207,-270.22708852,0.00018919,2]
[372906426,1752801040217,-182.52959912,0.0001892,2]
[372906427,1752801040226,-952.0,0.0001893,2]
[372906428,1752801040235,-3350.0,0.0001893,2]
[372906429,1752801040245,-876.46891624,0.0001893,2]
[372906430,1752801040256,-250.20278209,0.0001893,2]
[372906431,1752801040267,-501.63306173,0.0001893,2]
[372906465,1752801042920,-387.69523994,0.0001893,2]
[372906469,1752801042933,-174.79,0.00019178,2]
[372906471,1752801042949,-150.0,0.00019504,2]
[372906473,1752801042964,-190.0,0.00019736,7]
[372906475,1752801042975,-1000.0,0.000198,2]
[372906477,1752801042984,-1000.0,0.000198,3]
[372906478,1752801042994,-1000.0,0.000198,4]
[372906479,1752801043003,-20833.02,0.00019856,2]
[372906480,1752801043013,-310.81,0.00019863,2]
[372906481,1752801043023,-164.45,0.00019863,2]
[372906482,1752801043033,-666.0,0.00019891,2]
[372906483,1752801043042,-2351.0,0.000199,2]
[372906484,1752801043052,-529.09428029,0.0001995,2]
[372906485,1752801043061,-250.0,0.00020024,2]
[372906486,1752801043071,-150.0,0.00020025,2]
[372906487,1752801043083,-651.0,0.0002005,2]
[372906488,1752801043093,-900.0,0.00020164,2]
[372906489,1752801043102,-500.0,0.00020164,2]
[372906490,1752801043112,-1000.0,0.00020164,2]
[372906491,1752801043122,-227.87,0.00020187,2]
[372906492,1752801043131,-150.0,0.00020546,2]
[372906493,1752801043141,-1000.0,0.00020596,2]
[372906494,1752801043150,-207.4,0.00020599,2]
[372906495,1752801043160,-645.06,0.00020641,2]
[372906496,1752801043170,-150.0,0.00020688,4]
[372906497,1752801043180,-185.89,0.00020707,2]
[372906498,1752801043190,-157.26,0.00020761,2]
[372906499,1752801043200,-464.8,0.00020841,2]
[372906500,1752801043209,-342.92028957,0.00020876,2]
[372906501,1752801043219,-511.0,0.00021028,5]
[372906502,1752801043229,-464.8,0.00021041,2]
[372906503,1752801043239,-814.69,0.00021041,2]
[372906504,1752801043249,-150.0,0.00021067,2]
[372906505,1752801043259,-900.0,0.0002126,2]
[372906506,1752801043270,-1000.0,0.0002126,2]
[372906507,1752801043279,-500.0,0.0002126,2]
[372906508,1752801043290,-150.0,0.0002126,2]
[372906509,1752801043301,-150.0,0.0002126,2]
[372906510,1752801043311,-500.0,0.0002126,2]
[372906511,1752801043321,-150.0,0.0002126,2]
[372906512,1752801043332,-150.0,0.0002126,2]
[372906513,1752801043342,-150.0,0.0002126,2]
[372906514,1752801043352,-500.0,0.0002126,2]
[372906515,1752801043362,-150.0,0.0002126,2]
[372906516,1752801043373,-150.0,0.0002126,2]
[372906517,1752801043384,-150.0,0.0002126,2]
[372906518,1752801043394,-150.0,0.0002126,2]
[372906519,1752801043404,-150.0,0.0002126,2]
[372906520,1752801043414,-150.0,0.0002126,2]
[372906521,1752801043424,-150.0,0.0002126,2]
[372906523,1752801043433,-500.0,0.0002126,2]
[372906525,1752801043443,-500.0,0.0002126,2]
[372906526,1752801043453,-500.0,0.0002126,2]
[372906527,1752801043467,-150.0,0.0002126,2]
[372906528,1752801043477,-150.0,0.0002126,2]
[372906529,1752801043487,-150.0,0.0002126,2]
[372906530,1752801043496,-637.0,0.0002133,2]
[372906531,1752801043506,-300.0,0.00021336,2]
[372906532,1752801043515,-172.11,0.00021336,2]
[372906533,1752801043525,-164.68,0.00021336,2]
[372906534,1752801043535,-357.46,0.00021336,2]
[372906535,1752801043544,-458.36,0.00021336,2]
[372906536,1752801043554,-300.0,0.00021336,2]
[372906537,1752801043564,-916.72,0.00021336,2]
[372906538,1752801043574,-329.36,0.00021336,2]
[372906540,1752801043583,-300.75,0.00021336,2]
[372906542,1752801043592,-150.0,0.00021336,2]
[372906543,1752801043602,-1174.01,0.00021336,2]